Cogmind - Beta 12 X1 @@@ ROGUE MODE // 2022.07.10 @ 22:52:25 Player: snuf Result: Self-destructed Performance ------------- Evolutions (3) 1500 Regions Visited (5) 1000 Robots Destroyed (38) 190 Value Destroyed (1287) 1287 Prototype IDs (0) 0 Alien Tech Used (0) 0 Bonus (181) 181 TOTAL SCORE: 4158 Bonus ------- High Alert Combat Kills 181 Cogmind --------- Core Integrity 639/700 Matter 214/300 Energy 255/265 System Corruption 8% Temperature Cool (6) Movement Rolling (115) Ox1 Location -7/Factory Parts ------- > --- POWER (1) -------- Improved Ion Engine > --- PROPULSION (3) --- Improved Treads Armored Huge Wheel > --- UTILITY (6) ------ Heat Sink Cooling System Large Storage Unit Advanced Targeting Computer Advanced Targeting Computer Improved Light Armor Plating > --- WEAPON (3) ------- Heavy Assault Rifle High-powered Shotgun Gauss Rifle > --- INVENTORY (15) --- Light Treads Light Treads Compact Wheel Large Matter Pod (150) Trap Scanner Advanced Targeting Computer Transmission Jammer High-powered Shotgun High-powered Shotgun Flak Gun Heavy Missile Launcher Remote Datajack Plasma Cutter Greatsword Peak State ------------ > --- POWER ------------ Improved Ion Engine > --- PROPULSION ------- Improved Treads Armored Huge Wheel > --- UTILITY ---------- Cooling System Large Storage Unit Advanced Targeting Computer Advanced Targeting Computer Transmission Jammer Improved Light Armor Plating > --- WEAPON ----------- Heavy Assault Rifle Heavy Assault Rifle High-powered Shotgun > --- INVENTORY -------- Improved Ion Engine Light Treads Light Treads Compact Wheel Heat Sink Large Matter Pod Advanced Targeting Computer High-powered Shotgun High-powered Shotgun Flak Gun Heavy Missile Launcher Remote Datajack Plasma Cutter Greatsword [Rating: 38] Favorites ----------- Power Improved Ion Engine Engine Improved Ion Engine Power Core Light Nuclear Core Propulsion Improved Treads Treads Improved Treads Leg Improved Aluminum Leg Wheel Compact Wheel Utility Large Storage Unit Device Heat Sink Storage Large Storage Unit Processor Advanced Targeting Computer Protection Reactive Plating Weapon Heavy Assault Rifle Energy Gun Beam Rifle Ballistic Gun Heavy Assault Rifle Launcher Mini Grenade Launcher Special Weapon Mining Laser Build | -11 -10 -9 -9 -9 -7 ------- Run | Scr Mat Mat Sto Rec Fac Slots Evolved 6 | . . 2 . . 4 Power . | . . . . . . Propulsion 1 | . . . . . 1 Utility 4 | . . 1 . . 3 Weapon 1 | . . 1 . . . Parts Attached 50 | . 10 13 9 1 17 Power 4 | . 2 1 . . 1 Engine 3 | . 1 1 . . 1 Core 1 | . 1 . . . . Reactor . | . . . . . . Propulsion 10 | . 4 . 3 1 2 Treads 3 | . 1 . 2 . . Leg 2 | . 2 . . . . Wheel 5 | . 1 . 1 1 2 Hover . | . . . . . . Flight . | . . . . . . Utility 19 | . 2 4 1 . 12 Device 11 | . 1 2 . . 8 Storage 1 | . 1 . . . . Processor 4 | . . 2 . . 2 Hackware . | . . . . . . Protection 3 | . . . 1 . 2 Artifact . | . . . . . . Weapon 17 | . 2 8 5 . 2 Energy Gun 4 | . 2 1 1 . . Energy Cannon . | . . . . . . Ballistic Gun 9 | . . 4 3 . 2 Ballistic Cannon . | . . . . . . Launcher 1 | . . 1 . . . Special Weapon 3 | . . 2 1 . . Impact Weapon . | . . . . . . Slashing Weapon . | . . . . . . Piercing Weapon . | . . . . . . Special Melee Weapon . | . . . . . . Unidentified Prototypes . | . . . . . . Parts Lost 4 | . . . 3 . 1 Power . | . . . . . . Propulsion 2 | . . . 2 . . Utility 1 | . . . . . 1 Weapon 1 | . . . 1 . . Highest Loss Streak 3 | . . . 3 . 1 To Critical Strikes . | . . . . . . Average Slot Usage (%) 98 | . 96 98 100 100 99 Engine 9 | . 9 11 11 11 7 Treads 8 | . 2 11 11 11 7 Leg 4 | . 20 . . . . Wheel 10 | . 4 11 11 11 14 Device 9 | . 10 11 5 . 13 Storage 10 | . 14 11 11 11 7 Processor 8 | . . 9 11 11 10 Protection 5 | . . . 5 11 13 Energy Gun 8 | . 12 12 10 11 1 Ballistic Gun 20 | . 16 19 22 22 21 Naked Turns . | . . . . . . Heaviest Build 59 | 11 28 36 46 46 59 Greatest Support 28 | 20 26 16 23 23 28 Greatest Overweight (x) 3 | . 1 2 2 3 2 Average Overweight (x) 1 | . . 1 1 2 1 Largest Inventory Capacity 15 | . 15 15 15 15 15 Average Capacity 14 | . 10 15 15 15 15 Most Carried 15 | . 8 15 15 14 15 Average Carried 12 | . 7 13 13 13 13 Final Capacity 15 | 8 15 15 15 15 15 Final Carried 15 | 6 7 15 13 14 15 Class Distribution -------------------- 51% | Scavenger-Gunner 22% | Mutant 17% | Scavenger-Tank 8% | Gunner Dominant Class ---------------- Mutant | -10/Materials Scavenger-Gunner | -9/Materials Scavenger-Gunner | -9/Storage Scavenger-Gunner | -9/Recycling Scavenger-Tank | -7/Factory Resources | -11 -10 -9 -9 -9 -7 ----------- Run | Scr Mat Mat Sto Rec Fac Matter Collected 1327 | 198 179 257 212 236 245 Remotely . | . . . . . . Salvage Created 1393 | . 307 399 383 . 304 Parts 76 | . 11 24 24 . 17 Haulers Intercepted 1 | . . 1 . . . Recyclers Shooed 1 | . . 1 . . . Parts Field Recycled . | . . . . . . Retrieved Matter . | . . . . . . Parts Self-Destructed . | . . . . . . Prevented . | . . . . . . Kills | -11 -10 -9 -9 -9 -7 ------- Run | Scr Mat Mat Sto Rec Fac Combat Hostiles Destroyed 30 | . 7 8 8 . 7 Guns 27 | . 7 5 8 . 7 AOE 3 | . . 3 . . . Classes Destroyed 13 | . 2 4 2 . 5 Worker 1 | . . . . . 1 Builder 2 | . . . 1 . 1 Tunneler 1 | . . . . . 1 Hauler 1 | . . 1 . . . Recycler 1 | . . 1 . . . Watcher 2 | . 1 1 . . . Swarmer 5 | . . 4 . . 1 Grunt 13 | . 7 1 5 . . Brawler 2 | . . . 1 . 1 Duelist 1 | . . . . . 1 Sentry 5 | . . 3 2 . . Hunter 3 | . . . . . 3 Programmer 1 | . . . . . 1 Best Kill Streak 5 | . 4 5 3 . 4 Combat Bots Only 5 | . 3 5 3 . 3 Max Kills in Single Turn 3 | . 1 2 2 . 3 Gunslinging . | . . . . . . Exploded 2 | . . 2 . . . Melee . | . . . . . . Uniques/NPCs Destroyed . | . . . . . . Combat | -11 -10 -9 -9 -9 -7 -------- Run | Scr Mat Mat Sto Rec Fac Damage Taken 1630 | . 433 225 393 . 579 Core 228 | . 138 . 29 . 61 Absorbed by Shields . | . . . . . . Core Remaining (%) 78 | 100 44 . . 92 . Volleys Fired 99 | . 37 24 19 1 18 Largest 3 | . 2 3 3 3 3 Hottest 102 | . 80 100 102 102 71 Shots Fired 244 | . 74 62 55 4 49 Gun 238 | . 74 57 54 4 49 Cannon . | . . . . . . Launcher 3 | . . 3 . . . Special 3 | . . 2 1 . . Kinetic 195 | . 67 36 40 3 49 Thermal 46 | . 7 23 15 1 . Explosive 3 | . . 3 . . . Electromagnetic . | . . . . . . Robot Hit Streak 20 | . 14 20 13 . 10 Robot Miss Streak 6 | . 4 4 3 6 2 Penetration Max . | . . . . . . Secondary Targets 2 | . 1 1 . . . Max Gunslinging Chain 1 | . 1 1 . . . Shots Hit Robots 162 | . 48 39 37 . 38 Core Hits 76 | . 20 16 16 . 24 Critical Kills . | . . . . . . Critical Parts Destroyed 3 | . 1 . . . 2 Critical Strikes 4 | . 1 . 1 . 2 Burn 1 | . . . 1 . . Destroy 3 | . 1 . . . 2 Melee Attacks . | . . . . . . Impact . | . . . . . . Slashing . | . . . . . . Piercing . | . . . . . . Sneak Attacks . | . . . . . . Combat Hostiles . | . . . . . . Follow-up Attacks . | . . . . . . Damage Inflicted 2850 | . 507 814 537 . 992 Guns 2126 | . 507 514 537 . 568 Cannons . | . . . . . . Explosions 723 | . . 300 . . 423 Melee . | . . . . . . Ramming 1 | . . . . . 1 Kinetic 1752 | . 464 300 420 . 568 Thermal 797 | . 43 214 117 . 423 Explosive 300 | . . 300 . . . Electromagnetic . | . . . . . . Impact . | . . . . . . Slashing . | . . . . . . Piercing . | . . . . . . Highest Corruption 8 | . . . 7 7 8 Average Corruption 6 | . . . 6 7 6 Corruption Purged . | . . . . . . Corruption Blocked . | . . . . . . Effects 26 | . . . 3 11 12 Message Errors 3 | . . . 1 1 1 Matter Fused 3 | . . . . 2 1 Heat Flow Errors 3 | . . . . 1 2 Energy Discharges 4 | . . . . 2 2 Parts Rejected 1 | . . . . . 1 Data Loss (minor) 6 | . . . . 3 3 Data Loss (major) 1 | . . . . 1 . Misfires 2 | . . . 1 1 . Weapon Failures 3 | . . . 1 . 2 Overload Shots . | . . . . . . Overflow Damage 109 | . . 42 . . 67 Projectiles . | . . . . . . Explosions 109 | . . 42 . . 67 Melee . | . . . . . . Knockbacks . | . . . . . . Impact . | . . . . . . Kinetic . | . . . . . . Secondary . | . . . . . . Self-Inflicted Damage . | . . . . . . Shots . | . . . . . . Rammed 1 | . . . . . 1 Targets Rammed 1 | . . . . . 1 Kicked . | . . . . . . Crushed . | . . . . . . Highest Temperature 254 | . 36 12 216 254 242 Average Temperature 48 | . 13 6 54 103 117 Received Heat Transfer 459 | . 285 51 117 . 6 Siege Activations . | . . . . . . Robots Corrupted . | . . . . . . Combat Hostiles . | . . . . . . Parts Fried . | . . . . . . Impact Corruptions . | . . . . . . Robots Melted . | . . . . . . Combat Hostiles . | . . . . . . Parts Melted 1 | . . . 1 . . Heat Transferred 1341 | . 100 521 370 . 350 Parts Sabotaged . | . . . . . . Parts Stolen . | . . . . . . Parts Stripped . | . . . . . . Power Chain Reactions . | . . . . . . Missiles Intercepted . | . . . . . . Alert | -11 -10 -9 -9 -9 -7 ------- Run | Scr Mat Mat Sto Rec Fac Peak Influence 1064 | . 300 324 434 184 1064 Initial 939 | . . 42 136 169 939 Average 374 | . 170 113 297 106 943 Maximum Alert Level 3 | . 1 1 2 . 3 Low Security (%) 53 | . 56 89 28 100 . Level 1 15 | . 43 10 44 . . Level 2 2 | . . . 27 . . Level 3 27 | . . . . . 100 Level 4 . | . . . . . . Level 5 . | . . . . . . High Security . | . . . . . . Max Security . | . . . . . . Squads Dispatched 8 | . 3 1 2 . 2 Investigation 1 | . . . . . 1 Extermination 1 | . . . . . 1 Reinforcement 6 | . 3 1 2 . . Assault . | . . . . . . Garrison . | . . . . . . Intercept . | . . . . . . Searches Triggered 1 | . . . . . 1 Construction Impeded . | . . . . . . Haulers Reinforced . | . . . . . . Active Scanning Responses . | . . . . . . Cargo Convoy Interrupts . | . . . . . . Stealth | -11 -10 -9 -9 -9 -7 --------- Run | Scr Mat Mat Sto Rec Fac Distress Signals 5 | . 1 4 . . . Communications Jammed . | . . . . . . Distress Signals . | . . . . . . Times Spotted 65 | . 16 14 10 12 13 Peak Tracking Total 6 | . 5 6 5 4 5 Tactical Retreats 6 | . 3 1 2 . . Traps | -11 -10 -9 -9 -9 -7 ------- Run | Scr Mat Mat Sto Rec Fac Traps Triggered 1 | . . . . . 1 Indirectly . | . . . . . . Trap Hack Attempts . | . . . . . . Triggered . | . . . . . . Disarmed . | . . . . . . Reprogrammed . | . . . . . . Reused . | . . . . . . Traps Extracted . | . . . . . . Installed . | . . . . . . Triggered . | . . . . . . Machines | -11 -10 -9 -9 -9 -7 ---------- Run | Scr Mat Mat Sto Rec Fac Machines Disabled 11 | . . 2 . . 9 Max in Single Turn 9 | . . 1 . . 9 Machines Sabotaged . | . . . . . . Garrisons Compromised . | . . . . . . Overloaded Fab Kills . | . . . . . . Hacking | -11 -10 -9 -9 -9 -7 --------- Run | Scr Mat Mat Sto Rec Fac Machines Accessed 15 | . 3 3 3 4 2 Terminals 12 | . 3 3 2 3 1 Fabricators . | . . . . . . Repair Stations . | . . . . . . Recycling Units 2 | . . . 1 1 . Scanalyzers . | . . . . . . Garrison Access 1 | . . . . . 1 Total Hacks 23 | . 5 5 6 4 3 Successful 13 | . 4 2 4 2 1 Failed 10 | . 1 3 2 2 2 Catastrophic 1 | . . . . . 1 Database Lockouts . | . . . . . . Manual 8 | . 1 . 4 3 . Terminals 18 | . 5 5 4 3 1 Fabricators . | . . . . . . Repair Stations . | . . . . . . Recycling Units 3 | . . . 2 1 . Scanalyzers . | . . . . . . Garrison Access 2 | . . . . . 2 Terminal Hacks 8 | . 3 2 1 1 1 Alert Level 1 | . . . . . 1 Unreport Threat 1 | . . . . 1 . Locate Traps 4 | . 3 1 . . . Zone Layout 2 | . . 1 1 . . Fabricator Hacks . | . . . . . . Repair Station Hacks . | . . . . . . Recycling Unit Hacks 2 | . . . 2 . . Report Inventory 1 | . . . 1 . . Retrieve Matter 1 | . . . 1 . . Scanalyzer . | . . . . . . Garrison Access Hacks . | . . . . . . Unauthorized Hacks 3 | . 1 . 1 1 . Terminals 2 | . 1 . 1 . . Botnet 2 | . 1 . 1 . . Fabricators . | . . . . . . Repair Stations . | . . . . . . Recycling Units 1 | . . . . 1 . Tunnel 1 | . . . . 1 . Scanalyzers . | . . . . . . Garrison Access . | . . . . . . Data Cores Recovered . | . . . . . . Used . | . . . . . . Hacking Detections 14 | . 3 3 3 3 2 Full Trace Events 1 | . . . . . 1 Feedback Events 1 | . . . . . 1 Corruption 1 | . . . . . 1 Feedback Blocked . | . . . . . . Robot Schematics Acquired . | . . . . . . Robots Built . | . . . . . . Authchips . | . . . . . . Time . | . . . . . . Total Robot Build Rating . | . . . . . . Part Schematics Acquired . | . . . . . . Parts Built . | . . . . . . Authchips . | . . . . . . Time . | . . . . . . Total Part Build Rating . | . . . . . . Parts Repaired . | . . . . . . Time . | . . . . . . Parts Recycled . | . . . . . . Recycled Matter . | . . . . . . Retrieved Matter . | . . . . . . Retrieved Components . | . . . . . . Parts Scanalyzed . | . . . . . . Part Schematics Acquired . | . . . . . . Parts Damaged . | . . . . . . Bothacking | -11 -10 -9 -9 -9 -7 ------------ Run | Scr Mat Mat Sto Rec Fac Used RIF Installer . | . . . . . . Robots Hacked . | . . . . . . Non-combat . | . . . . . . Combat . | . . . . . . Robot Hacks Applied . | . . . . . . Relay Couplers Released . | . . . . . . Fabnet Peak Effective % . | . . . . . . Robots Rewired . | . . . . . . Allies Hacked . | . . . . . . Hacks Repelled . | . . . . . . Allies | -11 -10 -9 -9 -9 -7 -------- Run | Scr Mat Mat Sto Rec Fac Total Allies . | . . . . . . Largest Group . | . . . . . . Highest-Rated Group . | . . . . . . Highest-Rated Ally . | . . . . . . Total Orders . | . . . . . . Ally Attacks . | . . . . . . Total Damage . | . . . . . . Kills . | . . . . . . Allies Corrupted . | . . . . . . Allies Melted . | . . . . . . Intel | -11 -10 -9 -9 -9 -7 ------- Run | Scr Mat Mat Sto Rec Fac Robot Analysis Total . | . . . . . . Derelict Logs Recovered . | . . . . . . Drone Launches . | . . . . . . Drone Recoveries . | . . . . . . Exploration | -11 -10 -9 -9 -9 -7 ------------- Run | Scr Mat Mat Sto Rec Fac Turns Passed 2166 | . 419 588 217 336 606 Spaces Moved 1239 | 1 242 310 82 204 400 Core . | . . . . . . Treads 74 | . . . 20 54 . Legs 128 | 1 127 . . . . Wheels 1037 | . 115 310 62 150 400 Hover . | . . . . . . Flight . | . . . . . . Fastest Speed 110 | 120 115 115 130 130 110 Average Speed 130 | 120 117 125 156 161 119 Slowest Speed 240 | 120 120 130 240 240 125 Overloaded Moves . | . . . . . . Propulsion Burnouts . | . . . . . . Robots Hopped . | . . . . . . Cave-ins Triggered . | . . . . . . Exploration Rate (%) 30 | 2 47 28 28 65 14 Regions Visited 5 Branch Regions 2 Pre-discovered Areas 1 | . . . . 1 . Known Exits Taken . | . . . . . . Unknown Exits Taken 5 | 1 1 1 1 1 . Scrap Searched . | . . . . . . Spaces Dug 3 | . . 2 1 . . Terrain Destroyed 106 | . . 66 1 . 39 Melee . | . . . . . . Projectile 3 | . . 2 1 . . AOE 103 | . . 64 . . 39 Terrain Rammed . | . . . . . . Walls Destroyed . | . . . . . . Machines Disabled . | . . . . . . Actions | -11 -10 -9 -9 -9 -7 --------- Run | Scr Mat Mat Sto Rec Fac Total 1587 | . 310 457 125 208 487 Wait 134 | . 6 82 13 3 30 Move 1234 | . 241 309 81 203 400 Hop . | . . . . . . Pick Up 33 | . 5 17 2 . 9 Fast Attach 14 | . 5 4 . . 5 Attach 12 | . 1 1 3 . 7 Detach 4 | . . 1 . . 3 Swap 24 | . 4 8 6 1 5 Drop 32 | . 11 11 1 . 9 Fire 99 | . 37 24 19 1 18 Melee . | . . . . . . Ram 1 | . . . . . 1 Kick . | . . . . . . Crush . | . . . . . . Escape Stasis . | . . . . . . Rewire . | . . . . . . Trap . | . . . . . . Miscellaneous . | . . . . . . Route ------- -11/Scrapyard -10/Materials -9/Materials (discovered 3 exits: [*Min x2] / *Sto) -9/Storage -9/Recycling -7/Factory History --------- Turn | Location | Event 1 | -11/Scrapyard | Discovered new exit (range 0) 1 | -11/Scrapyard | Entered Materials 222 | -10/Materials | Core integrity fell below 50% 303 | -10/Materials | Build established: Mutant 340 | -10/Materials | Discovered new exit (range 9) 420 | -10/Materials | Entered another Materials area 420 | -9/Materials | Evolved 2 slots: Utility x1, Weapon x1 554 | -9/Materials | Discovered new exit (range 6) 751 | -9/Materials | Discovered new exit (range 15) 854 | -9/Materials | Discovered new exit (range 6) 1008 | -9/Materials | Entered Storage 1182 | -9/Storage | Lost 3 parts (2n1w) 1212 | -9/Storage | Build established: Scavenger-Gunner 1215 | -9/Storage | Used back door to open Recycling access 1215 | -9/Storage | Discovered new exit (range 5) 1225 | -9/Storage | Entered Recycling 1256 | -9/Recycling | Spotter reported a threat 1282 | -9/Recycling | Spotter reported a threat 1285 | -9/Recycling | Spotter reported a threat 1297 | -9/Recycling | Spotter reported a threat 1309 | -9/Recycling | Spotter reported a threat 1334 | -9/Recycling | Spotter reported a threat 1335 | -9/Recycling | Spotter reported a threat 1338 | -9/Recycling | Spotter reported a threat 1371 | -9/Recycling | Spotter reported a threat 1391 | -9/Recycling | Spotter reported a threat 1479 | -9/Recycling | Spotter reported a threat 1498 | -9/Recycling | Spotter reported a threat 1515 | -9/Recycling | Spotter reported a threat 1532 | -9/Recycling | Spotter reported a threat 1534 | -9/Recycling | Spotter reported a threat 1540 | -9/Recycling | Discovered new exit (range 16) 1561 | -9/Recycling | Entered Factory 1561 | -7/Factory | Evolved 4 slots: Propulsion x1, Utility x3 1864 | -7/Factory | Build established: Scavenger-Tank 1961 | -7/Factory | Search patrols dispatched 2167 | -7/Factory | Self-destructed Last Messages --------------- 02117_ System corrupted: Matter fused (-7). 02121_ R-06 Scavenger collects Wheel. 02126_ Dropped Imp. Ion Engine. 02127_ Acquired Trap Scanner. 02131_ R-06 Scavenger collects Imp. Ion Engine. 02139_ K-01 Serf cleans the Assembly Bed. 02151_ System corrupted: Energy discharge (-82). 02152_ Slug penetrates Wall. 02154_ K-01 Serf cleans the Assembly Bed. 02155_ H-55 Commando destroyed. 02158_ K-01 Serf collects debris. 02162_ Dropped Hvy. Assault Rifle. 02162_ Acquired Gauss Rifle. 02163_ R-06 Scavenger collects Hvy. Assault Rifle. 02163_ K-01 Serf collects debris. 02164_ Acquired 43 matter. 02166_ Slammed into K-01 Serf. 02166_ C-30 ARC bursts open, deploying its payload. 02166_ S-27 Virus unfolds itself. 02167_ R-06 Scavenger collects Carbon-fiber Leg. Map ----- +----------------------------------------------------+ | ?????????????????????????????????????????????????? | | ?????????????????????????????????????????????????? | | ?????????????????????????????????????????????????? | | ?????????????????????????????????????????????????? | | ?????????????????????????????? ??????????????????? | | ?????????????????????????????? ??????????????????? | | ?????????????????????????????? ??????????????????? | | ?????????????????????????????? ??????????????????? | | ???????????????????????? ??# ?????????????????? | | ???????????????????????" ??# ?????????????????? | | ???????????????????????" ??# ?????????????????" | | ???????????????????????" #?# ??????????????# ?" | | ??????????????????????? #?# ??????????????# | | ???????????????????????" #?# ??????????????# " | | ??????????????????????"" ###+###########???# " | | ?????????????????????""" a## ! """" ##### " | | ????????????????????"""" r## ""R" + +?? | | ???????????????????? ## "" " # #??? | | ???????????????????""""" ## # #### | | ???????????????????""""" ## # | | ????????????????? """""" ## # | | ?????????????# """""" ## ! + | | ??????????????? ## """ """ # | | ???????????????????""""" kr## """ """ # | | ???????????????????"""""u= k / """ """ ######## | | ???????????????????""""" @#### #????# | | ???????????????????""""" #??# #????# ! | | ????????????????? k #??##############????# | | ????????????????? """""" #????????????????????#= | | ??????????????????"""""" #????????????????????# | | ??????????????????"""""" #????????????????????# | | ??????????????????"""""" #????????????????????# | | ?????????????????????? #????????????????????# | | ??????????????????????""sY#????????????????????# " | | ??????????????????????""s%?????????????????????# " | | ???????????????????????" ?????????????????????# " | | ???????????????????????"s ?????????????????????# ? | | ??????????????????????? ?????????????????????##? | | ???????????????????????" ???????????????????????? | | ???????????????????????" k???????????????????????? | | ???????????????????????? ???????????????????????? | | ?????????????????????????????????????????????????? | | ?????????????????????????????????????????????????? | | ?????????????????????????????????????????????????? | | ?????????????????????????????????????????????????? | | ?????????????????????????????????????????????????? | | ?????????????????????????????????????????????????? | | ?????????????????????????????????????????????????? | | ?????????????????????????????????????????????????? | | ?????????????????????????????????????????????????? | +----------------------------------------------------+ Best States ------------- Heat Dissipation 66 Energy Generation 14 Energy Capacity 265 Matter Stores 300 Matter Capacity 300 Sight Range 16 Terrain Scan Density 10 Jamming Range 12 Armor Coverage 300 Resistance: KI 20 Evasion (%) 55 Targeting Accuracy 16 Armor Integrity Analysis 30 Recoil Reduction 1 Item Schematics ----------------- None Robot Schematics ------------------ None Fabricated ------------ Nothing Alien Tech Used ----------------- None Achievements -------------- None Challenges ------------ None Game ------ Seed ColdCannonBarrier Manual? 0 Play Time 00:34:08 Cumulative 209.6 hours Start 2022.07.10 @ 22:09:37 End 2022.07.10 @ 22:52:25 Sessions 1 Manual Loads 0 Difficulty Rogue Special Mode None Game No. 141 Rogue 141 Adventurer 0 Explorer 0 Win Type - Total 1 Types 0/0/0/1/0/0/0/0/0 Lore% 28 Gallery% 52 Achievement% 50 Wizard Run 0 Options --------- ASCII 0 Keyboard 1 Movement Vi Keybinds 0 Fullscreen 1 Font 18/TerminusBold Map View 76x50 Tactical HUD 1 Map Filters NONE Filters NONE Steam 1 RUN: ac452cb8-123e-4bde-935b-a2cd223d1b10